[Event "*** Titled Tuesday Blitz"]
[Site "Chess.com"]
[Date "2020.05.12"]
[Round "9"]
[White "MikaelyanArman"]
[Black "Bacyanide"]
[Result "1/2-1/2"]
[WhiteElo "2652"]
[BlackElo "2423"]
[TimeControl "180+1"]
[EndTime "11:43:41 PDT"]
[Termination "Game drawn - insufficient material"]

1. d4 {[%clk 0:03:00.9]} 1... d5 {[%clk 0:02:59.9]} 2. c4 {[%clk 0:03:00.9]}
2... e6 {[%clk 0:03:00.3]} 3. Nc3 {[%clk 0:03:01.1]} 3... c5 {[%clk 0:03:00.2]}
4. cxd5 {[%clk 0:02:58.1]} 4... exd5 {[%clk 0:03:00.4]} 5. Nf3 {[%clk
0:02:58.3]} 5... Nf6 {[%clk 0:02:59.5]} 6. g3 {[%clk 0:02:57.3]} 6... Nc6 {[%clk
0:02:58.6]} 7. Bg2 {[%clk 0:02:57.5]} 7... cxd4 {[%clk 0:02:59.1]} 8. Nxd4
{[%clk 0:02:57.4]} 8... Bc5 {[%clk 0:02:59.7]} 9. Nb3 {[%clk 0:02:48.5]} 9...
Bb6 {[%clk 0:02:59.6]} 10. O-O {[%clk 0:02:45.7]} 10... d4 {[%clk 0:02:59.9]}
11. Na4 {[%clk 0:02:45]} 11... O-O {[%clk 0:02:59]} 12. Bg5 {[%clk 0:02:39.7]}
12... Re8 {[%clk 0:02:21.9]} 13. Re1 {[%clk 0:02:02.7]} 13... h6 {[%clk
0:02:20.2]} 14. Bxf6 {[%clk 0:02:02.2]} 14... Qxf6 {[%clk 0:02:21.1]} 15. Nxb6
{[%clk 0:02:02.5]} 15... axb6 {[%clk 0:02:21.6]} 16. Bxc6 {[%clk 0:01:57.4]}
16... bxc6 {[%clk 0:02:22.5]} 17. Qxd4 {[%clk 0:01:57.7]} 17... Qd8 {[%clk
0:02:20.9]} 18. Qxd8 {[%clk 0:01:25.2]} 18... Rxd8 {[%clk 0:02:19.8]} 19. e3
{[%clk 0:01:03.9]} 19... c5 {[%clk 0:02:13.8]} 20. Re2 {[%clk 0:00:40]} 20...
Be6 {[%clk 0:02:09.1]} 21. Rd2 {[%clk 0:00:28.7]} 21... Rxd2 {[%clk 0:01:18.1]}
22. Nxd2 {[%clk 0:00:29.6]} 22... Rd8 {[%clk 0:01:16.2]} 23. Nf3 {[%clk
0:00:25.6]} 23... g5 {[%clk 0:01:12.8]} 24. Kf1 {[%clk 0:00:17.7]} 24... g4
{[%clk 0:01:12.2]} 25. Ne1 {[%clk 0:00:12.4]} 25... Rd2 {[%clk 0:01:11.4]} 26.
b3 {[%clk 0:00:12.9]} 26... Kg7 {[%clk 0:01:06.7]} 27. Ng2 {[%clk 0:00:09.3]}
27... Bd5 {[%clk 0:00:59.7]} 28. Nf4 {[%clk 0:00:09.1]} 28... Bf3 {[%clk
0:00:59.8]} 29. a3 {[%clk 0:00:07.9]} 29... Rb2 {[%clk 0:00:56.5]} 30. b4 {[%clk
0:00:04.4]} 30... c4 {[%clk 0:00:53]} 31. h3 {[%clk 0:00:04.9]} 31... f5 {[%clk
0:00:51.6]} 32. hxg4 {[%clk 0:00:04]} 32... fxg4 {[%clk 0:00:52.5]} 33. Ne6+
{[%clk 0:00:04.7]} 33... Kf6 {[%clk 0:00:51]} 34. Nd4 {[%clk 0:00:05.6]} 34...
c3 {[%clk 0:00:50.8]} 35. Rc1 {[%clk 0:00:05]} 35... Ra2 {[%clk 0:00:43.6]} 36.
Ke1 {[%clk 0:00:04.6]} 36... Rxa3 {[%clk 0:00:43.5]} 37. Nxf3 {[%clk 0:00:03.6]}
37... gxf3 {[%clk 0:00:43.3]} 38. Kd1 {[%clk 0:00:04.5]} 38... Ke5 {[%clk
0:00:40.4]} 39. Kc2 {[%clk 0:00:02.2]} 39... Ra2+ {[%clk 0:00:40.6]} 40. Kxc3
{[%clk 0:00:02.7]} 40... Rxf2 {[%clk 0:00:41.5]} 41. Kd3 {[%clk 0:00:02.3]}
41... Rg2 {[%clk 0:00:38.4]} 42. Rh1 {[%clk 0:00:02.4]} 42... f2 {[%clk
0:00:38.2]} 43. Ke2 {[%clk 0:00:02.3]} 43... Rxg3 {[%clk 0:00:34.1]} 44. Rh5+
{[%clk 0:00:02.4]} 44... Rg5 {[%clk 0:00:33.8]} 45. Rxh6 {[%clk 0:00:01.8]}
45... Rf5 {[%clk 0:00:33.7]} 46. Kf1 {[%clk 0:00:02.4]} 46... Ke4 {[%clk
0:00:34.2]} 47. Rxb6 {[%clk 0:00:02.7]} 47... Kxe3 {[%clk 0:00:34.7]} 48. Re6+
{[%clk 0:00:03.2]} 48... Kf3 {[%clk 0:00:34.8]} 49. Re8 {[%clk 0:00:03.8]} 49...
Rf4 {[%clk 0:00:34.5]} 50. Re7 {[%clk 0:00:03.4]} 50... Rxb4 {[%clk 0:00:33.6]}
51. Rf7+ {[%clk 0:00:03.8]} 51... Ke3 {[%clk 0:00:33.9]} 52. Re7+ {[%clk
0:00:03.8]} 52... Kf3 {[%clk 0:00:34.2]} 53. Rf7+ {[%clk 0:00:04.1]} 53... Ke3
{[%clk 0:00:34.4]} 54. Re7+ {[%clk 0:00:04.4]} 54... Re4 {[%clk 0:00:34.6]} 55.
Rxe4+ {[%clk 0:00:04.3]} 55... Kxe4 {[%clk 0:00:35.5]} 56. Kxf2 {[%clk
0:00:05.1]} 1/2-1/2

[Event "*** Titled Tuesday Blitz"]
[Site "Chess.com"]
[Date "2020.05.12"]
[Round "9"]
[White "Gajuchess"]
[Black "Shukh_Nikolay"]
[Result "1-0"]
[WhiteElo "2705"]
[BlackElo "2535"]
[TimeControl "180+1"]
[EndTime "11:43:42 PDT"]
[Termination "Gajuchess won by resignation"]

1. d4 {[%clk 0:03:00.9]} 1... Nf6 {[%clk 0:02:59.2]} 2. c4 {[%clk 0:03:00.3]}
2... g6 {[%clk 0:02:58.9]} 3. Nc3 {[%clk 0:03:00.2]} 3... Bg7 {[%clk 0:02:58.2]}
4. e4 {[%clk 0:03:00.1]} 4... d6 {[%clk 0:02:58.3]} 5. Nf3 {[%clk 0:03:00.8]}
5... c6 {[%clk 0:02:58.1]} 6. Be2 {[%clk 0:03:01.1]} 6... Nbd7 {[%clk
0:02:57.6]} 7. e5 {[%clk 0:02:57.3]} 7... dxe5 {[%clk 0:02:48.9]} 8. dxe5 {[%clk
0:02:58.2]} 8... Ng4 {[%clk 0:02:49.1]} 9. e6 {[%clk 0:02:58.5]} 9... fxe6
{[%clk 0:02:48.8]} 10. Ng5 {[%clk 0:02:57.9]} 10... Nxf2 {[%clk 0:02:44.1]} 11.
Kxf2 {[%clk 0:02:57.3]} 11... O-O+ {[%clk 0:02:44.3]} 12. Bf3 {[%clk 0:02:37.1]}
12... Qb6+ {[%clk 0:02:43.9]} 13. Ke2 {[%clk 0:02:33.7]} 13... Ne5 {[%clk
0:02:38.2]} 14. Qb3 {[%clk 0:02:25.7]} 14... Qd4 {[%clk 0:02:33.1]} 15. Be3
{[%clk 0:02:17.2]} 15... Qxc4+ {[%clk 0:02:26.2]} 16. Qxc4 {[%clk 0:02:16.8]}
16... Nxc4 {[%clk 0:02:27.1]} 17. Bc1 {[%clk 0:02:17.4]} 17... e5 {[%clk
0:02:16.7]} 18. Nge4 {[%clk 0:02:14]} 18... Nd6 {[%clk 0:02:15.1]} 19. Be3
{[%clk 0:02:10.1]} 19... Nf5 {[%clk 0:02:15]} 20. Rhd1 {[%clk 0:02:04.3]} 20...
Nd4+ {[%clk 0:02:14.7]} 21. Kf2 {[%clk 0:02:04.6]} 21... Bg4 {[%clk 0:02:10.3]}
22. Bxd4 {[%clk 0:02:01.9]} 22... exd4 {[%clk 0:02:09.9]} 23. Ne2 {[%clk
0:02:02.5]} 23... e5 {[%clk 0:02:01.5]} 24. Kg3 {[%clk 0:01:58.1]} 24... Bxf3
{[%clk 0:01:58.6]} 25. gxf3 {[%clk 0:01:57.9]} 25... Rf5 {[%clk 0:01:54.8]} 26.
Rf1 {[%clk 0:01:56.1]} 26... Raf8 {[%clk 0:01:51.9]} 27. Nc1 {[%clk 0:01:55.9]}
27... Bh6 {[%clk 0:01:48.8]} 28. Nd3 {[%clk 0:01:55.7]} 28... Bf4+ {[%clk
0:01:45.3]} 29. Kg2 {[%clk 0:01:54.9]} 29... Be3 {[%clk 0:01:41.7]} 30. b4
{[%clk 0:01:55]} 30... b6 {[%clk 0:01:37.8]} 31. a4 {[%clk 0:01:51.4]} 31... h5
{[%clk 0:01:22.4]} 32. Ra2 {[%clk 0:01:51.3]} 32... Kg7 {[%clk 0:01:19.6]} 33.
Rc2 {[%clk 0:01:50.2]} 33... Rc8 {[%clk 0:00:55.6]} 34. Nd6 {[%clk 0:01:49]}
34... Rg5+ {[%clk 0:00:55]} 35. Kh1 {[%clk 0:01:48.5]} 35... Rf8 {[%clk
0:00:54.3]} 36. Ne1 {[%clk 0:01:34.4]} 36... d3 {[%clk 0:00:38.1]} 37. Nxd3
{[%clk 0:01:31.9]} 37... Rxf3 {[%clk 0:00:36.5]} 38. Re1 {[%clk 0:01:25.2]}
38... Bd4 {[%clk 0:00:33.4]} 39. Ne4 {[%clk 0:00:25.2]} 39... Rgf5 {[%clk
0:00:25.4]} 40. Rd1 {[%clk 0:00:20.8]} 40... Rf1+ {[%clk 0:00:21.9]} 41. Rxf1
{[%clk 0:00:20.6]} 41... Rxf1+ {[%clk 0:00:22.5]} 42. Kg2 {[%clk 0:00:21.5]}
42... Ra1 {[%clk 0:00:19.9]} 43. Rxc6 {[%clk 0:00:20.3]} 43... Rxa4 {[%clk
0:00:19.7]} 44. h4 {[%clk 0:00:17.5]} 44... Ra3 {[%clk 0:00:18.2]} 45. Ndf2
{[%clk 0:00:16.9]} 45... a5 {[%clk 0:00:16.6]} 46. bxa5 {[%clk 0:00:16.6]} 46...
bxa5 {[%clk 0:00:16.7]} 47. Nh3 {[%clk 0:00:16.4]} 47... Kf7 {[%clk 0:00:15.3]}
48. Nhg5+ {[%clk 0:00:16.3]} 48... Ke7 {[%clk 0:00:15.4]} 49. Rc7+ {[%clk
0:00:16.8]} 49... Kf8 {[%clk 0:00:11.6]} 50. Ne6+ {[%clk 0:00:15.9]} 50... Kg8
{[%clk 0:00:10.3]} 51. Nf6+ {[%clk 0:00:16.4]} 1-0

[Event "*** Titled Tuesday Blitz"]
[Site "Chess.com"]
[Date "2020.05.12"]
[Round "9"]
[White "chessdjw"]
[Black "Hasangatin_Ramil"]
[Result "1/2-1/2"]
[WhiteElo "2680"]
[BlackElo "2561"]
[TimeControl "180+1"]
[EndTime "11:43:42 PDT"]
[Termination "Game drawn - insufficient material"]

1. e4 {[%clk 0:03:00.9]} 1... d5 {[%clk 0:02:59.6]} 2. exd5 {[%clk 0:03:00.3]}
2... Qxd5 {[%clk 0:03:00.5]} 3. Nc3 {[%clk 0:03:00.7]} 3... Qd6 {[%clk 0:03:01]}
4. d4 {[%clk 0:02:58.6]} 4... Nf6 {[%clk 0:03:01]} 5. Nf3 {[%clk 0:02:57.7]}
5... c6 {[%clk 0:03:00.5]} 6. g3 {[%clk 0:02:56.8]} 6... Bg4 {[%clk 0:02:58.9]}
7. Bg2 {[%clk 0:02:56.2]} 7... e6 {[%clk 0:02:58.2]} 8. O-O {[%clk 0:02:55.3]}
8... Be7 {[%clk 0:02:55.7]} 9. Bf4 {[%clk 0:02:52.1]} 9... Qd8 {[%clk
0:02:55.4]} 10. h3 {[%clk 0:02:51.3]} 10... Bxf3 {[%clk 0:02:55.4]} 11. Bxf3
{[%clk 0:02:51.6]} 11... Bd6 {[%clk 0:02:55.3]} 12. Bd2 {[%clk 0:02:48.1]} 12...
Qc7 {[%clk 0:02:53.4]} 13. Bg2 {[%clk 0:02:47.4]} 13... Nbd7 {[%clk 0:02:52.3]}
14. Re1 {[%clk 0:02:47.2]} 14... O-O {[%clk 0:02:51.6]} 15. Qe2 {[%clk
0:02:47.8]} 15... Rfe8 {[%clk 0:02:50.3]} 16. Rad1 {[%clk 0:02:46.6]} 16... Rad8
{[%clk 0:02:50]} 17. h4 {[%clk 0:02:46.4]} 17... h6 {[%clk 0:02:45.3]} 18. a3
{[%clk 0:02:44.7]} 18... Nb6 {[%clk 0:02:35.2]} 19. Qf1 {[%clk 0:02:40.5]} 19...
Nbd5 {[%clk 0:02:34.5]} 20. Na4 {[%clk 0:02:35.3]} 20... b5 {[%clk 0:02:26.1]}
21. Nc5 {[%clk 0:02:31.8]} 21... e5 {[%clk 0:02:23.1]} 22. dxe5 {[%clk
0:02:29.1]} 22... Bxc5 {[%clk 0:02:11.3]} 23. exf6 {[%clk 0:02:28.9]} 23... Nxf6
{[%clk 0:02:11.2]} 24. Bf4 {[%clk 0:02:23.9]} 24... Qb6 {[%clk 0:02:03.9]} 25.
Rxe8+ {[%clk 0:02:22.7]} 25... Rxe8 {[%clk 0:01:54.8]} 26. b4 {[%clk 0:02:22.3]}
26... Bd4 {[%clk 0:01:46]} 27. Bf3 {[%clk 0:02:14.8]} 27... Nd5 {[%clk
0:01:38.4]} 28. Bxd5 {[%clk 0:02:07.6]} 28... cxd5 {[%clk 0:01:39.3]} 29. Kg2
{[%clk 0:02:06.4]} 29... Re4 {[%clk 0:01:23.2]} 30. f3 {[%clk 0:01:55.5]} 30...
Re8 {[%clk 0:01:16.3]} 31. Rd2 {[%clk 0:01:55.2]} 31... Rc8 {[%clk 0:00:29.5]}
32. Qd1 {[%clk 0:01:54.4]} 32... Rc4 {[%clk 0:00:28.8]} 33. Rd3 {[%clk
0:01:48.9]} 33... h5 {[%clk 0:00:24.6]} 34. Kh3 {[%clk 0:01:46.4]} 34... g6
{[%clk 0:00:23.8]} 35. Kh2 {[%clk 0:01:44.6]} 35... a6 {[%clk 0:00:23.8]} 36.
Kg2 {[%clk 0:01:43.2]} 36... Kh7 {[%clk 0:00:23.6]} 37. Kf1 {[%clk 0:01:31.4]}
37... Bf6 {[%clk 0:00:22.3]} 38. Rxd5 {[%clk 0:01:25.8]} 38... Bxh4 {[%clk
0:00:22.1]} 39. Qd3 {[%clk 0:01:15.1]} 39... Rxf4 {[%clk 0:00:20.1]} 40. Rxh5+
{[%clk 0:01:14.8]} 40... Kg7 {[%clk 0:00:17.9]} 41. Rxh4 {[%clk 0:01:14.9]}
41... Rxh4 {[%clk 0:00:17.9]} 42. gxh4 {[%clk 0:01:15.8]} 42... Qf6 {[%clk
0:00:17.7]} 43. Qe4 {[%clk 0:00:55.3]} 43... Qa1+ {[%clk 0:00:16.7]} 44. Kg2
{[%clk 0:00:54.1]} 44... Qxa3 {[%clk 0:00:17.1]} 45. Kg3 {[%clk 0:00:51.9]}
45... Qc3 {[%clk 0:00:15.7]} 46. Kf4 {[%clk 0:00:45.9]} 46... Kg8 {[%clk
0:00:13.9]} 47. Qe8+ {[%clk 0:00:44.8]} 47... Kg7 {[%clk 0:00:14.1]} 48. Qe5+
{[%clk 0:00:44.5]} 48... Qxe5+ {[%clk 0:00:14.1]} 49. Kxe5 {[%clk 0:00:45.4]}
49... Kh6 {[%clk 0:00:10.3]} 50. Kf6 {[%clk 0:00:45]} 50... Kh5 {[%clk
0:00:10.5]} 51. Kxf7 {[%clk 0:00:45.3]} 51... Kxh4 {[%clk 0:00:10.7]} 52. Kxg6
{[%clk 0:00:41.4]} 52... Kg3 {[%clk 0:00:10.8]} 53. Kf5 {[%clk 0:00:42]} 53...
Kxf3 {[%clk 0:00:11.2]} 54. Ke5 {[%clk 0:00:42.6]} 54... Ke3 {[%clk 0:00:11.4]}
55. Kd5 {[%clk 0:00:41.4]} 55... Kd2 {[%clk 0:00:11.3]} 56. c4 {[%clk
0:00:35.7]} 56... bxc4 {[%clk 0:00:12.1]} 57. Kxc4 {[%clk 0:00:36.6]} 57... Kc2
{[%clk 0:00:12.2]} 58. Kc5 {[%clk 0:00:37]} 58... Kb3 {[%clk 0:00:12.2]} 59. b5
{[%clk 0:00:37.5]} 59... axb5 {[%clk 0:00:11.5]} 60. Kxb5 {[%clk 0:00:38.4]}
1/2-1/2

[Event "*** Titled Tuesday Blitz"]
[Site "Chess.com"]
[Date "2020.05.12"]
[Round "9"]
[White "Hippotaner"]
[Black "MPGM"]
[Result "1-0"]
[WhiteElo "2381"]
[BlackElo "2522"]
[TimeControl "180+1"]
[EndTime "11:43:42 PDT"]
[Termination "Hippotaner won by resignation"]

1. e4 {[%clk 0:03:00.9]} 1... e5 {[%clk 0:02:58.3]} 2. Nf3 {[%clk 0:02:55.7]}
2... Nc6 {[%clk 0:02:53]} 3. Bc4 {[%clk 0:02:52.9]} 3... Bc5 {[%clk 0:02:53.4]}
4. c3 {[%clk 0:02:51.3]} 4... Nf6 {[%clk 0:02:53.9]} 5. d3 {[%clk 0:02:51.1]}
5... a6 {[%clk 0:02:51.7]} 6. a4 {[%clk 0:02:51.3]} 6... d6 {[%clk 0:02:49.9]}
7. Na3 {[%clk 0:02:51.6]} 7... Ne7 {[%clk 0:02:44.3]} 8. Bg5 {[%clk 0:02:50.5]}
8... Ng6 {[%clk 0:02:36.5]} 9. Nh4 {[%clk 0:02:50.3]} 9... O-O {[%clk
0:02:17.5]} 10. Nc2 {[%clk 0:02:42.3]} 10... h6 {[%clk 0:02:10.4]} 11. Nxg6
{[%clk 0:02:40.8]} 11... hxg5 {[%clk 0:02:06.1]} 12. Nxf8 {[%clk 0:02:40.3]}
12... Qxf8 {[%clk 0:02:02.4]} 13. O-O {[%clk 0:02:37.7]} 13... g6 {[%clk
0:01:50.1]} 14. d4 {[%clk 0:02:37.4]} 14... Ba7 {[%clk 0:01:48.2]} 15. Qe2
{[%clk 0:02:33.1]} 15... Kg7 {[%clk 0:01:45.6]} 16. Rad1 {[%clk 0:02:30.4]}
16... Qe7 {[%clk 0:01:30.9]} 17. a5 {[%clk 0:02:30]} 17... Bg4 {[%clk
0:01:25.8]} 18. f3 {[%clk 0:02:29.6]} 18... Bd7 {[%clk 0:01:25.3]} 19. Ne3
{[%clk 0:02:25.5]} 19... Rh8 {[%clk 0:01:21.3]} 20. g4 {[%clk 0:01:58.5]} 20...
c6 {[%clk 0:01:03.5]} 21. Kg2 {[%clk 0:01:47.9]} 21... Ne8 {[%clk 0:01:00.7]}
22. d5 {[%clk 0:01:45.5]} 22... Nc7 {[%clk 0:00:53]} 23. Ba2 {[%clk 0:01:40.1]}
23... cxd5 {[%clk 0:00:47.3]} 24. Nxd5 {[%clk 0:01:39.5]} 24... Nxd5 {[%clk
0:00:43.8]} 25. Bxd5 {[%clk 0:01:39.5]} 25... Bb5 {[%clk 0:00:36.2]} 26. Bc4
{[%clk 0:01:36]} 26... Bc6 {[%clk 0:00:33.1]} 27. b4 {[%clk 0:01:31]} 27... Qf6
{[%clk 0:00:32.6]} 28. Qd2 {[%clk 0:01:25]} 28... Rd8 {[%clk 0:00:25.2]} 29. Rh1
{[%clk 0:01:17.7]} 29... Qf4 {[%clk 0:00:17.7]} 30. Qxf4 {[%clk 0:01:17.1]}
30... gxf4 {[%clk 0:00:18.6]} 31. Rd3 {[%clk 0:01:13.1]} 31... Bb8 {[%clk
0:00:16.7]} 32. h4 {[%clk 0:01:12.1]} 32... Rc8 {[%clk 0:00:16.3]} 33. h5 {[%clk
0:01:09.1]} 33... Bxe4 {[%clk 0:00:15.2]} 34. fxe4 {[%clk 0:00:50.6]} 34... Rxc4
{[%clk 0:00:14.7]} 35. Kf3 {[%clk 0:00:51.2]} 35... Rc8 {[%clk 0:00:08.8]} 36.
h6+ {[%clk 0:00:46.8]} 36... Kh7 {[%clk 0:00:07.5]} 37. g5 {[%clk 0:00:47.4]}
37... Rf8 {[%clk 0:00:05.9]} 38. Kg4 {[%clk 0:00:47.4]} 38... f6 {[%clk
0:00:05.6]} 39. gxf6 {[%clk 0:00:44.5]} 39... Rxf6 {[%clk 0:00:06.5]} 40. c4
{[%clk 0:00:42.5]} 40... Bc7 {[%clk 0:00:05.9]} 41. c5 {[%clk 0:00:42.4]} 41...
Re6 {[%clk 0:00:03.6]} 42. Rhd1 {[%clk 0:00:38.8]} 42... Kxh6 {[%clk 0:00:02]}
43. cxd6 {[%clk 0:00:39]} 43... Bd8 {[%clk 0:00:02.9]} 44. Rc1 {[%clk
0:00:36.7]} 44... Kg7 {[%clk 0:00:02.4]} 45. Rc8 {[%clk 0:00:36.7]} 45... Bf6
{[%clk 0:00:02.5]} 46. d7 {[%clk 0:00:37]} 46... Rc6 {[%clk 0:00:01.6]} 47. Rxc6
{[%clk 0:00:36.6]} 47... bxc6 {[%clk 0:00:01.3]} 48. d8=Q {[%clk 0:00:37.5]}
48... Bxd8 {[%clk 0:00:02.2]} 49. Rxd8 {[%clk 0:00:38.1]} 49... Kf6 {[%clk
0:00:03.1]} 50. Rd6+ {[%clk 0:00:38.4]} 50... Ke7 {[%clk 0:00:04]} 51. Rxc6
{[%clk 0:00:39.3]} 51... Kd7 {[%clk 0:00:04.2]} 52. Rxg6 {[%clk 0:00:39.3]}
52... Ke7 {[%clk 0:00:05.1]} 53. Rxa6 {[%clk 0:00:40]} 53... Kd7 {[%clk
0:00:06]} 54. Rf6 {[%clk 0:00:39.6]} 54... Ke7 {[%clk 0:00:06.9]} 55. Rf5 {[%clk
0:00:40.4]} 55... Kd7 {[%clk 0:00:07.8]} 56. Rxe5 {[%clk 0:00:40.8]} 1-0

[Event "*** Titled Tuesday Blitz"]
[Site "Chess.com"]
[Date "2020.05.12"]
[Round "9"]
[White "viktorskliarov"]
[Black "karinachess1"]
[Result "0-1"]
[WhiteElo "2569"]
[BlackElo "2467"]
[TimeControl "180+1"]
[EndTime "11:43:44 PDT"]
[Termination "karinachess1 won by checkmate"]

1. e4 {[%clk 0:03:00.9]} 1... e5 {[%clk 0:02:56.5]} 2. Nc3 {[%clk 0:02:59.5]}
2... Nc6 {[%clk 0:02:50]} 3. Bc4 {[%clk 0:02:59.6]} 3... Nf6 {[%clk 0:02:45.8]}
4. d3 {[%clk 0:02:59.9]} 4... Na5 {[%clk 0:02:37.7]} 5. Nge2 {[%clk 0:02:59.3]}
5... g6 {[%clk 0:02:19.9]} 6. Bb3 {[%clk 0:02:55.5]} 6... Nxb3 {[%clk 0:02:16]}
7. axb3 {[%clk 0:02:56.4]} 7... Bg7 {[%clk 0:02:14.4]} 8. O-O {[%clk 0:02:57]}
8... O-O {[%clk 0:02:13.1]} 9. f4 {[%clk 0:02:57.6]} 9... exf4 {[%clk
0:02:07.8]} 10. Bxf4 {[%clk 0:02:55.2]} 10... d5 {[%clk 0:02:07.1]} 11. Bg5
{[%clk 0:02:29.1]} 11... h6 {[%clk 0:02:03.5]} 12. Bxf6 {[%clk 0:02:27.8]} 12...
Bxf6 {[%clk 0:02:04.4]} 13. exd5 {[%clk 0:02:26.8]} 13... Bg7 {[%clk 0:01:55.9]}
14. Ra4 {[%clk 0:02:04.6]} 14... Bf5 {[%clk 0:01:39]} 15. Ng3 {[%clk 0:01:58.6]}
15... Bd7 {[%clk 0:01:36.3]} 16. Raf4 {[%clk 0:01:53.2]} 16... Qe7 {[%clk
0:01:28]} 17. Qf3 {[%clk 0:01:19.8]} 17... Rae8 {[%clk 0:01:22.7]} 18. h3 {[%clk
0:01:17.2]} 18... f5 {[%clk 0:01:18.8]} 19. Rc4 {[%clk 0:01:09.1]} 19... Qd6
{[%clk 0:01:04.4]} 20. Nge2 {[%clk 0:01:04.2]} 20... b5 {[%clk 0:00:59.5]} 21.
Rc6 {[%clk 0:00:43.8]} 21... Bxc6 {[%clk 0:00:58.6]} 22. dxc6 {[%clk 0:00:44.7]}
22... b4 {[%clk 0:00:57.3]} 23. Na4 {[%clk 0:00:28.9]} 23... f4 {[%clk
0:00:46.2]} 24. d4 {[%clk 0:00:23.5]} 24... Re3 {[%clk 0:00:41]} 25. Qf2 {[%clk
0:00:23.2]} 25... g5 {[%clk 0:00:41]} 26. c3 {[%clk 0:00:16]} 26... Rfe8 {[%clk
0:00:39.8]} 27. Nc1 {[%clk 0:00:15]} 27... Qxc6 {[%clk 0:00:36.8]} 28. Nc5
{[%clk 0:00:11.6]} 28... bxc3 {[%clk 0:00:36.9]} 29. bxc3 {[%clk 0:00:12]} 29...
Rxc3 {[%clk 0:00:36.6]} 30. b4 {[%clk 0:00:12.5]} 30... Rce3 {[%clk 0:00:35.5]}
31. Qa2+ {[%clk 0:00:12.4]} 31... Kh8 {[%clk 0:00:32.6]} 32. Qf7 {[%clk
0:00:12.2]} 32... Bxd4 {[%clk 0:00:29.8]} 33. Kh2 {[%clk 0:00:12.5]} 33... Qf6
{[%clk 0:00:29.1]} 34. Qxc7 {[%clk 0:00:11.7]} 34... Be5 {[%clk 0:00:28]} 35.
Nd7 {[%clk 0:00:10.9]} 35... Bxc7 {[%clk 0:00:20.6]} 36. Nxf6 {[%clk 0:00:10.5]}
36... Rd8 {[%clk 0:00:20.4]} 37. Ng4 {[%clk 0:00:10.2]} 37... Rc3 {[%clk
0:00:19.3]} 38. Ne2 {[%clk 0:00:09.9]} 38... f3+ {[%clk 0:00:19.1]} 39. Ng3
{[%clk 0:00:09.5]} 39... fxg2 {[%clk 0:00:18.8]} 40. Kxg2 {[%clk 0:00:09]} 40...
Rxg3+ {[%clk 0:00:19.1]} 41. Kf2 {[%clk 0:00:09.5]} 41... Rd2+ {[%clk
0:00:18.5]} 42. Ke1 {[%clk 0:00:09.3]} 42... Ra2 {[%clk 0:00:18.4]} 43. Rf8+
{[%clk 0:00:09.2]} 43... Kg7 {[%clk 0:00:18.5]} 44. Rc8 {[%clk 0:00:09.1]} 44...
Bf4 {[%clk 0:00:18.4]} 45. Kf1 {[%clk 0:00:08.2]} 45... Rxh3 {[%clk 0:00:17.2]}
46. Nf2 {[%clk 0:00:08.3]} 46... Rf3 {[%clk 0:00:16.8]} 47. Kg2 {[%clk
0:00:07.5]} 47... Rfxf2+ {[%clk 0:00:17]} 48. Kh3 {[%clk 0:00:08.1]} 48... Rg2
{[%clk 0:00:13.2]} 49. b5 {[%clk 0:00:07.4]} 49... Rg3# {[%clk 0:00:13.3]} 0-1

[Event "*** Titled Tuesday Blitz"]
[Site "Chess.com"]
[Date "2020.05.12"]
[Round "9"]
[White "Karacsonyi_Gellert"]
[Black "LikeWater"]
[Result "1-0"]
[WhiteElo "2503"]
[BlackElo "2664"]
[TimeControl "180+1"]
[EndTime "11:43:45 PDT"]
[Termination "Karacsonyi_Gellert won by resignation"]

1. e4 {[%clk 0:03:00.9]} 1... c5 {[%clk 0:02:59.6]} 2. Nf3 {[%clk 0:03:00.4]}
2... e6 {[%clk 0:03:00.2]} 3. d4 {[%clk 0:03:00.8]} 3... cxd4 {[%clk 0:03:01.1]}
4. Nxd4 {[%clk 0:03:01.2]} 4... Nc6 {[%clk 0:03:01.8]} 5. Nc3 {[%clk 0:03:01.1]}
5... Qc7 {[%clk 0:03:02.5]} 6. Be3 {[%clk 0:03:00.1]} 6... Nf6 {[%clk 0:03:03]}
7. a3 {[%clk 0:02:54.3]} 7... Be7 {[%clk 0:03:02.1]} 8. f4 {[%clk 0:02:53]} 8...
d6 {[%clk 0:03:02]} 9. Qf3 {[%clk 0:02:48.2]} 9... O-O {[%clk 0:03:00.9]} 10.
O-O-O {[%clk 0:02:48.4]} 10... a6 {[%clk 0:03:00.3]} 11. Nxc6 {[%clk 0:02:42.1]}
11... bxc6 {[%clk 0:02:57.7]} 12. g4 {[%clk 0:02:42.4]} 12... d5 {[%clk
0:02:58.3]} 13. g5 {[%clk 0:02:40.1]} 13... Nd7 {[%clk 0:02:58.8]} 14. h4 {[%clk
0:02:35.1]} 14... Qa5 {[%clk 0:02:59.1]} 15. Nb1 {[%clk 0:02:33.3]} 15... Rb8
{[%clk 0:02:58.7]} 16. h5 {[%clk 0:02:26.5]} 16... c5 {[%clk 0:02:04]} 17. g6
{[%clk 0:02:18.6]} 17... Qb6 {[%clk 0:02:00.1]} 18. b3 {[%clk 0:02:13.8]} 18...
dxe4 {[%clk 0:01:55]} 19. gxh7+ {[%clk 0:02:14]} 19... Kh8 {[%clk 0:01:55.5]}
20. Qg3 {[%clk 0:02:11.4]} 20... Nf6 {[%clk 0:01:55.7]} 21. Bc4 {[%clk
0:02:03.1]} 21... Kxh7 {[%clk 0:01:47.7]} 22. Rdg1 {[%clk 0:02:02.1]} 22... Ne8
{[%clk 0:01:35.2]} 23. Nc3 {[%clk 0:01:29.6]} 23... Qa5 {[%clk 0:01:12.2]} 24.
Nxe4 {[%clk 0:01:28.4]} 24... Qxa3+ {[%clk 0:01:11.5]} 25. Kb1 {[%clk
0:01:25.9]} 25... Bb7 {[%clk 0:01:06.2]} 26. Qg6+ {[%clk 0:01:11.7]} 26... Kg8
{[%clk 0:00:51.7]} 27. Ng5 {[%clk 0:00:54.1]} 27... Bxg5 {[%clk 0:00:46]} 28.
Qxg5 {[%clk 0:00:28.6]} 28... Be4 {[%clk 0:00:46.4]} 29. Qxc5 {[%clk 0:00:06.4]}
29... Rxb3+ {[%clk 0:00:22.4]} 30. Bxb3 {[%clk 0:00:07.3]} 30... Qxb3+ {[%clk
0:00:22.9]} 31. Ka1 {[%clk 0:00:08.1]} 31... Bxc2 {[%clk 0:00:20.2]} 32. h6
{[%clk 0:00:07]} 32... Bg6 {[%clk 0:00:09.5]} 33. h7+ {[%clk 0:00:06.7]} 33...
Bxh7 {[%clk 0:00:06.2]} 34. Rxh7 {[%clk 0:00:07.6]} 34... Qa4+ {[%clk
0:00:06.6]} 35. Kb2 {[%clk 0:00:07.5]} 35... Kxh7 {[%clk 0:00:03.2]} 36. Qxf8
{[%clk 0:00:07.8]} 36... Qe4 {[%clk 0:00:02.4]} 37. Qxe8 {[%clk 0:00:06.9]}
37... Qxe3 {[%clk 0:00:03]} 38. Rh1+ {[%clk 0:00:05.9]} 38... Kg6 {[%clk
0:00:03.7]} 39. Qc6 {[%clk 0:00:06.1]} 39... Qd2+ {[%clk 0:00:03.4]} 40. Qc2+
{[%clk 0:00:06.2]} 40... Qxc2+ {[%clk 0:00:03.3]} 41. Kxc2 {[%clk 0:00:07.1]}
41... Kf5 {[%clk 0:00:04]} 42. Rf1 {[%clk 0:00:07.6]} 42... f6 {[%clk
0:00:03.7]} 43. Kd3 {[%clk 0:00:07.7]} 43... a5 {[%clk 0:00:03.8]} 44. Ke3
{[%clk 0:00:06.7]} 44... g5 {[%clk 0:00:01.9]} 45. fxg5+ {[%clk 0:00:06.4]}
45... Kxg5 {[%clk 0:00:02.8]} 46. Ra1 {[%clk 0:00:06.7]} 46... Kf5 {[%clk
0:00:03.7]} 47. Rxa5+ {[%clk 0:00:06.9]} 47... e5 {[%clk 0:00:04.6]} 48. Kf3
{[%clk 0:00:06.7]} 1-0